Cogmind - Beta 16 @@@ ROGUE MODE // 2025.11.06 @ 07:55:29 Player: Naughtyusername Result: Destroyed by G-67 Veteran with Field Laser Performance ------------- Evolutions (7) 3500 Regions Visited (10) 2000 Robots Destroyed (7) 35 Value Destroyed (131) 131 Prototype IDs (1) 20 Alien Tech Used (0) 0 Bonus (1334) 1334 TOTAL SCORE: 7020 Bonus ------- Pacifist 834 Entered DSFs 500 Cogmind --------- Core Integrity 0/1300 Matter 289/300 Energy 99/100 System Corruption 0% Temperature Cool (12) Movement Core (50) Location -3/Armory Parts ------- > --- POWER (1) -------- (None) > --- PROPULSION (2) --- (None) > --- UTILITY (16) ----- (None) > --- WEAPON (2) ------- (None) > --- INVENTORY (5) ---- ECM Suite Advanced Plasma Cannon Grenade Launcher Mini Grenade Launcher Improved Plasma Cutter Peak State ------------ > --- POWER ------------ (None) > --- PROPULSION ------- (None) > --- UTILITY ---------- Enhanced Optical Array Advanced Signal Interpreter Armor Integrity Analyzer Armor Integrity Analyzer Armor Integrity Analyzer Armor Integrity Analyzer System Shield > --- WEAPON ----------- Lance > --- INVENTORY -------- ECM Suite Grenade Launcher Mini Grenade Launcher [Rating: 35] Favorites ----------- Power None Propulsion None Utility Armor Integrity Analyzer Processor Armor Integrity Analyzer Hackware System Shield Weapon Axe Launcher Mini Grenade Launcher Slashing Weapon Axe Piercing Weapon Lance Build | -11 -10 -9 -8 -7 -6 -5 -5 -4 -3 -3 ------- Run | Yrd Mat Mat Mat Fac Fac Fac DSF Fac Res Arm Slots Evolved 14 | . . 2 2 2 2 2 . 2 2 . Power . | . . . . . . . . . . . Propulsion . | . . . . . . . . . . . Utility 14 | . . 2 2 2 2 2 . 2 2 . Weapon . | . . . . . . . . . . . Parts Attached 13 | . . . 5 2 3 . 1 2 . . Power . | . . . . . . . . . . . Engine . | . . . . . . . . . . . Core . | . . . . . . . . . . . Reactor . | . . . . . . . . . . . Propulsion . | . . . . . . . . . . . Treads . | . . . . . . . . . . . Leg . | . . . . . . . . . . . Wheel . | . . . . . . . . . . . Hover . | . . . . . . . . . . . Flight . | . . . . . . . . . . . Utility 9 | . . . 4 1 3 . . 1 . . Device . | . . . . . . . . . . . Storage . | . . . . . . . . . . . Processor 8 | . . . 4 1 2 . . 1 . . Hackware 1 | . . . . . 1 . . . . . Protection . | . . . . . . . . . . . Artifact . | . . . . . . . . . . . Weapon 4 | . . . 1 1 . . 1 1 . . Energy Gun . | . . . . . . . . . . . Energy Cannon . | . . . . . . . . . . . Ballistic Gun . | . . . . . . . . . . . Ballistic Cannon . | . . . . . . . . . . . Launcher 1 | . . . . 1 . . . . . . Special Weapon . | . . . . . . . . . . . Impact Weapon . | . . . . . . . . . . . Slashing Weapon 1 | . . . 1 . . . . . . . Piercing Weapon 2 | . . . . . . . 1 1 . . Special Melee Weapon . | . . . . . . . . . . . Unidentified Prototypes 1 | . . . . . . . . 1 . . Parts Lost 12 | . . . . . 2 . 2 4 . 4 Power . | . . . . . . . . . . . Propulsion . | . . . . . . . . . . . Utility 9 | . . . . . 1 . 1 3 . 4 Weapon 3 | . . . . . 1 . 1 1 . . Highest Loss Streak 4 | . . . . . 1 . 2 4 . 2 To Critical Strikes . | . . . . . . . . . . . Average Backups 2 | . . 1 1 2 3 3 3 3 4 4 Power . | . . . . . . . . . . . Propulsion . | . . . . . . . . . . . Utility . | . . . . 1 1 1 1 1 1 1 Weapon 2 | . . 1 1 1 2 2 2 2 3 3 Tool/Special . | . . . . . . . . . . . Unused Backups 4 | . . . . . . . . . . 4 Power . | . . . . . . . . . . . Propulsion . | . . . . . . . . . . . Utility 1 | . . . . . . . . . . 1 Weapon 2 | . . . . . . . . . . 2 Tool/Special 1 | . . . . . . . . . . 1 Average Slot Usage (%) 27 | . . . 6 44 45 41 43 21 19 15 Processor 23 | . . . 3 36 38 35 33 20 19 15 Slashing Weapon 2 | . . . 2 6 3 . . . . . Peak Build Rating 35 | . . . 19 23 33 29 35 25 22 22 Average Rating 18 | . . . 2 22 27 29 32 19 22 16 On Entrance 15 | . . . . 19 23 29 29 25 22 22 Avg Prop Armor Cover (%) . | . . . . . . . . . . . Naked Turns 157 | . 35 59 62 . . . . . . 1 Heaviest Build 3 | . . . 3 3 3 . 3 2 . . Greatest Support 3 | 3 3 3 3 3 3 3 3 3 3 3 Greatest Overweight (x) . | . . . . . . . . . . . Average Overweight (x) . | . . . . . . . . . . . Largest Inventory Capacity 5 | 5 5 5 5 5 5 5 5 5 5 5 Average Capacity 5 | 5 5 5 5 5 5 5 5 5 5 5 Most Carried 5 | . 1 1 2 3 3 3 3 4 4 5 Average Carried 3 | . . 1 1 2 3 3 3 3 4 4 Final Capacity 5 | 5 5 5 5 5 5 5 5 5 5 5 Final Carried 5 | . 1 1 2 3 3 3 3 4 4 5 Class Distribution -------------------- 100% | Mutant Dominant Class ---------------- Mutant | -10/Materials Mutant | -9/Materials Mutant | -8/Materials Mutant | -7/Factory Mutant | -6/Factory Mutant | -5/Factory Mutant | -5/DSF Mutant | -4/Factory Mutant | -3/Research Mutant | -3/Armory Resources | -11 -10 -9 -8 -7 -6 -5 -5 -4 -3 -3 ----------- Run | Yrd Mat Mat Mat Fac Fac Fac DSF Fac Res Arm Matter Collected 302 | 33 . . . 112 . . . 157 . . Remotely . | . . . . . . . . . . . Salvage Created 123 | . . . . 123 . . . . . . Parts 11 | . . . . 11 . . . . . . Haulers Intercepted . | . . . . . . . . . . . Recyclers Shooed . | . . . . . . . . . . . Parts Field Recycled . | . . . . . . . . . . . Retrieved Matter . | . . . . . . . . . . . Parts Self-Destructed . | . . . . . . . . . . . Prevented . | . . . . . . . . . . . Parts Restored . | . . . . . . . . . . . Kills | -11 -10 -9 -8 -7 -6 -5 -5 -4 -3 -3 ------- Run | Yrd Mat Mat Mat Fac Fac Fac DSF Fac Res Arm Combat Hostiles Destroyed 4 | . . . . 4 . . . . . . Melee 1 | . . . . 1 . . . . . . AOE 3 | . . . . 3 . . . . . . Classes Destroyed 3 | . . . . 3 . . . . . . Worker 3 | . . . . 3 . . . . . . Swarmer 3 | . . . . 3 . . . . . . Grunt 1 | . . . . 1 . . . . . . Best Kill Streak 4 | . . . . 4 . . . . . . Combat Bots Only 3 | . . . . 3 . . . . . . Max Kills in Single Turn 2 | . . . . 2 . . . . . . Gunslinging . | . . . . . . . . . . . Exploded 1 | . . . . 1 . . . . . . Melee 1 | . . . . 1 . . . . . . Uniques/NPCs Destroyed . | . . . . . . . . . . . Combat | -11 -10 -9 -8 -7 -6 -5 -5 -4 -3 -3 -------- Run | Yrd Mat Mat Mat Fac Fac Fac DSF Fac Res Arm Hostile Shots Fired 340 | . 4 2 16 34 21 . 27 119 . 117 Missed 157 | . 3 1 9 12 8 . 12 60 . 52 Hits 183 | . 1 1 7 22 13 . 15 59 . 65 Melee 4 | . . . . . . . 4 . . . Projectile 179 | . 1 1 7 22 13 . 11 59 . 65 AOE 3 | . . . . . . . 3 . . . Critical Strikes 5 | . . . . 2 . . . 3 . . Damage Taken 3854 | . 15 11 103 322 315 . 488 1191 . 1409 Core 3408 | . 15 11 93 269 272 . 386 1059 . 1303 Absorbed by Shields 29 | . . . . . . . 29 . . . Core Remaining (%) 71 | 100 94 97 83 61 68 . 61 7 . . Volleys Fired 3 | . . . . 3 . . . . . . Largest 1 | . . . . 1 . . . . . . Hottest 30 | . . . . 30 . . . . . . Shots Fired 3 | . . . . 3 . . . . . . Gun . | . . . . . . . . . . . Cannon . | . . . . . . . . . . . Launcher 3 | . . . . 3 . . . . . . Special . | . . . . . . . . . . . Kinetic . | . . . . . . . . . . . Thermal . | . . . . . . . . . . . Explosive 3 | . . . . 3 . . . . . . Electromagnetic . | . . . . . . . . . . . Robot Hit Streak 1 | . . . . 1 . . . . . . Robot Miss Streak 1 | . . . . 1 . . . . . . Penetration Max . | . . . . . . . . . . . Secondary Targets . | . . . . . . . . . . . Shots Hit Robots 8 | . . . . 8 . . . . . . Core Hits 10 | . . . . 9 1 . . . . . Critical Kills . | . . . . . . . . . . . Critical Parts Destroyed . | . . . . . . . . . . . Critical Strikes . | . . . . . . . . . . . Melee Attacks 8 | . . . . 7 . . . 1 . . Impact . | . . . . . . . . . . . Slashing 7 | . . . . 7 . . . . . . Piercing 1 | . . . . . . . . 1 . . Sneak Attacks 3 | . . . . 3 . . . . . . Combat Hostiles 1 | . . . . 1 . . . . . . Follow-up Attacks . | . . . . . . . . . . . Damage Inflicted 665 | . . . . 658 3 . . 4 . . Guns . | . . . . . . . . . . . Cannons . | . . . . . . . . . . . Explosions 319 | . . . . 319 . . . . . . Melee 339 | . . . . 339 . . . . . . Ramming 7 | . . . . . 3 . . 4 . . Kinetic . | . . . . . . . . . . . Thermal . | . . . . . . . . . . . Explosive 319 | . . . . 319 . . . . . . Electromagnetic . | . . . . . . . . . . . Impact . | . . . . . . . . . . . Slashing 339 | . . . . 339 . . . . . . Piercing . | . . . . . . . . . . . Highest Corruption 2 | . . . . 1 . . . 2 . . Average Corruption 1 | . . . . 1 . . . 2 . . Corruption Purged . | . . . . . . . . . . . Corruption Blocked . | . . . . . . . . . . . Effects 3 | . . . . . . . . 3 . . Matter Fused 1 | . . . . . . . . 1 . . Heat Flow Errors 1 | . . . . . . . . 1 . . Data Loss (minor) 1 | . . . . . . . . 1 . . Overload Shots . | . . . . . . . . . . . Overflow Damage 41 | . . . . 41 . . . . . . Projectiles . | . . . . . . . . . . . Explosions . | . . . . . . . . . . . Melee 41 | . . . . 41 . . . . . . Knockbacks . | . . . . . . . . . . . Impact . | . . . . . . . . . . . Kinetic . | . . . . . . . . . . . Secondary . | . . . . . . . . . . . Self-Inflicted Damage 52 | . . . . 49 1 . . 2 . . Shots 1 | . . . . 1 . . . . . . Rammed 2 | . . . . . 1 . . 1 . . Targets Rammed 2 | . . . . . 1 . . 1 . . Kicked . | . . . . . . . . . . . Crushed . | . . . . . . . . . . . Highest Temperature 157 | . . . . . . . . 157 . . Average Temperature 74 | . . . . . . . . 74 . . Received Heat Transfer 511 | . 9 6 27 105 75 . . 115 . 174 Siege Activations . | . . . . . . . . . . . Martial Activations . | . . . . . . . . . . . Shielding Activations . | . . . . . . . . . . . Robots Disrupted . | . . . . . . . . . . . Combat Hostiles . | . . . . . . . . . . . Robots Corrupted . | . . . . . . . . . . . Combat Hostiles . | . . . . . . . . . . . Parts Fried . | . . . . . . . . . . . Impact Corruptions . | . . . . . . . . . . . Robots Melted . | . . . . . . . . . . . Combat Hostiles . | . . . . . . . . . . . Parts Melted . | . . . . . . . . . . . Heat Transferred . | . . . . . . . . . . . Parts Sabotaged . | . . . . . . . . . . . Parts Stolen . | . . . . . . . . . . . Parts Stripped . | . . . . . . . . . . . Power Chain Reactions . | . . . . . . . . . . . Alert | -11 -10 -9 -8 -7 -6 -5 -5 -4 -3 -3 ------- Run | Yrd Mat Mat Mat Fac Fac Fac DSF Fac Res Arm Maximum Alert Level . | . . . . . . . . . . . Low Security (%) 100 | 100 100 100 100 100 100 100 100 100 100 100 Level 1 . | . . . . . . . . . . . Level 2 . | . . . . . . . . . . . Level 3 . | . . . . . . . . . . . Level 4 . | . . . . . . . . . . . Level 5 . | . . . . . . . . . . . High Security . | . . . . . . . . . . . Max Security . | . . . . . . . . . . . Peak Influence 188 | . 9 16 1 188 124 55 38 134 69 25 Initial 86 | . . 3 1 . 86 55 38 9 69 20 Average 41 | . 2 5 . 37 85 55 32 65 53 12 Influence Increases 673 | . 9 23 . 229 128 . . 224 . 60 Destroy 0b10 Robot/C 80 | . . . . 80 . . . . . . Destroy 0b10 Robot/NC 15 | . . . . 15 . . . . . . Destroy Leader 20 | . . . . 20 . . . . . . Successful Hack 54 | . 9 8 . . 8 . . 14 . 15 Destroy Structure 24 | . . . . 24 . . . . . . Partial Spotted 30 | . . . . . 15 . . . . 15 Lose Combat Pursuer 450 | . . 15 . 90 105 . . 210 . 30 Influence Decreases 673 | . . 26 6 51 192 59 37 108 95 99 Entered New Map 272 | . . 6 5 . 92 59 17 9 65 19 Time Decay 317 | . . 20 1 51 80 . . 70 30 65 Lost Part 84 | . . . . . 20 . 20 29 . 15 Squads Dispatched 11 | . . . 1 1 4 . 1 2 . 2 Investigation 5 | . . . . 1 3 . . . . 1 Extermination . | . . . . . . . . . . . Reinforcement 6 | . . . 1 . 1 . 1 2 . 1 Assault . | . . . . . . . . . . . Garrison . | . . . . . . . . . . . Intercept . | . . . . . . . . . . . Searches Triggered . | . . . . . . . . . . . Construction Impeded . | . . . . . . . . . . . Haulers Reinforced . | . . . . . . . . . . . Active Scanning Responses . | . . . . . . . . . . . Cargo Convoy Interrupts . | . . . . . . . . . . . Stealth | -11 -10 -9 -8 -7 -6 -5 -5 -4 -3 -3 --------- Run | Yrd Mat Mat Mat Fac Fac Fac DSF Fac Res Arm Distress Signals 4 | . . . . 1 . . . 2 . 1 Communications Jammed . | . . . . . . . . . . . Distress Signals . | . . . . . . . . . . . Times Spotted 93 | . 2 3 5 9 8 . 6 25 . 35 Peak Tracking Total 33 | . 2 2 4 7 6 . 6 11 . 33 Tactical Retreats 12 | . . 1 . 2 2 . . 5 . 2 Traps | -11 -10 -9 -8 -7 -6 -5 -5 -4 -3 -3 ------- Run | Yrd Mat Mat Mat Fac Fac Fac DSF Fac Res Arm Traps Triggered 5 | . . . . 2 1 . 2 . . . Indirectly . | . . . . . . . . . . . Trap Hack Attempts . | . . . . . . . . . . . Triggered . | . . . . . . . . . . . Disarmed . | . . . . . . . . . . . Reprogrammed . | . . . . . . . . . . . Reused . | . . . . . . . . . . . Traps Extracted . | . . . . . . . . . . . Installed . | . . . . . . . . . . . Triggered . | . . . . . . . . . . . Machines | -11 -10 -9 -8 -7 -6 -5 -5 -4 -3 -3 ---------- Run | Yrd Mat Mat Mat Fac Fac Fac DSF Fac Res Arm Machines Disabled . | . . . . . . . . . . . Max in Single Turn . | . . . . . . . . . . . Machines Repaired . | . . . . . . . . . . . Machines Dismantled . | . . . . . . . . . . . Machines Sabotaged . | . . . . . . . . . . . Overloaded Fab Kills . | . . . . . . . . . . . Hacking | -11 -10 -9 -8 -7 -6 -5 -5 -4 -3 -3 --------- Run | Yrd Mat Mat Mat Fac Fac Fac DSF Fac Res Arm Machines Accessed 16 | . 1 1 . 3 3 1 . 3 . 4 Terminals 13 | . 1 1 . 3 3 1 . 2 . 2 Fabricators 3 | . . . . . . . . 1 . 2 Repair Stations . | . . . . . . . . . . . Recycling Units . | . . . . . . . . . . . Scanalyzers . | . . . . . . . . . . . Garrison Access . | . . . . . . . . . . . Total Hacks 40 | . 3 2 . 6 9 1 . 8 . 11 Successful 13 | . 2 1 . . 2 1 . 4 . 3 Failed 27 | . 1 1 . 6 7 . . 4 . 8 Catastrophic 11 | . . . . 4 3 . . . . 4 Database Lockouts . | . . . . . . . . . . . Manual 30 | . 2 . . 4 9 . . 5 . 10 Terminals 33 | . 3 2 . 6 9 1 . 5 . 7 Fabricators 7 | . . . . . . . . 3 . 4 Repair Stations . | . . . . . . . . . . . Recycling Units . | . . . . . . . . . . . Scanalyzers . | . . . . . . . . . . . Garrison Access . | . . . . . . . . . . . Terminal Hacks 7 | . 2 1 . . 1 1 . 1 . 1 Open DSF 1 | . . . . . . 1 . . . . Level Access Points 3 | . 1 1 . . . . . 1 . . Branch Access Points 2 | . 1 . . . 1 . . . . . Terminal Index 1 | . . . . . . . . . . 1 Fabricator Hacks 1 | . . . . . . . . 1 . . Network Status 1 | . . . . . . . . 1 . . Repair Station Hacks . | . . . . . . . . . . . Recycling Unit Hacks . | . . . . . . . . . . . Scanalyzer . | . . . . . . . . . . . Garrison Access Hacks . | . . . . . . . . . . . Unauthorized Hacks 5 | . . . . . 1 . . 2 . 2 Terminals 4 | . . . . . 1 . . 1 . 2 Track 1 | . . . . . . . . . . 1 Botnet 3 | . . . . . 1 . . 1 . 1 Fabricators 1 | . . . . . . . . 1 . . Fabnet 1 | . . . . . . . . 1 . . Repair Stations . | . . . . . . . . . . . Recycling Units . | . . . . . . . . . . . Scanalyzers . | . . . . . . . . . . . Garrison Access . | . . . . . . . . . . . Data Cores Recovered . | . . . . . . . . . . . Used . | . . . . . . . . . . . Hacking Detections 12 | . . . . 3 3 . . 2 . 4 Full Trace Events 5 | . . . . 1 3 . . . . 1 Feedback Events . | . . . . . . . . . . . Feedback Blocked . | . . . . . . . . . . . Robot Schematics Acquired . | . . . . . . . . . . . Robots Built . | . . . . . . . . . . . Authchips . | . . . . . . . . . . . Time . | . . . . . . . . . . . Total Robot Build Rating . | . . . . . . . . . . . Part Schematics Acquired . | . . . . . . . . . . . Parts Built . | . . . . . . . . . . . Authchips . | . . . . . . . . . . . Time . | . . . . . . . . . . . Total Part Build Rating . | . . . . . . . . . . . Part Studies Acquired . | . . . . . . . . . . . Parts Repaired . | . . . . . . . . . . . Time . | . . . . . . . . . . . Parts Recycled . | . . . . . . . . . . . Recycled Matter . | . . . . . . . . . . . Retrieved Matter . | . . . . . . . . . . . Retrieved Components . | . . . . . . . . . . . Parts Scanalyzed . | . . . . . . . . . . . Part Schematics Acquired . | . . . . . . . . . . . Parts Damaged . | . . . . . . . . . . . Bothacking | -11 -10 -9 -8 -7 -6 -5 -5 -4 -3 -3 ------------ Run | Yrd Mat Mat Mat Fac Fac Fac DSF Fac Res Arm Used RIF Installer . | . . . . . . . . . . . Robots Hacked 2 | . . . . . . . . . . 2 Non-combat . | . . . . . . . . . . . Combat 2 | . . . . . . . . . . 2 Robot Hacks Applied . | . . . . . . . . . . . Relay Couplers Released . | . . . . . . . . . . . Fabnet Peak Effective % 3 | . . . . . . . . . 3 3 Autooverrided 2 | . . . . . . . . . . 2 Robots Rewired . | . . . . . . . . . . . Allies Hacked . | . . . . . . . . . . . Hacks Repelled . | . . . . . . . . . . . Allies | -11 -10 -9 -8 -7 -6 -5 -5 -4 -3 -3 -------- Run | Yrd Mat Mat Mat Fac Fac Fac DSF Fac Res Arm Total Allies 2 | . . . . . . . . . . 2 Largest Group 1 | . . . . . . . . . . 1 Highest-Rated Group 64 | . . . . . . . . . . 64 Highest-Rated Ally 64 | . . . . . . . . . . 64 Total Orders . | . . . . . . . . . . . Ally Attacks 1 | . . . . . . . . . . 1 Total Damage 17 | . . . . . . . . . . 17 Kills . | . . . . . . . . . . . Allies Corrupted . | . . . . . . . . . . . Allies Melted . | . . . . . . . . . . . Intel | -11 -10 -9 -8 -7 -6 -5 -5 -4 -3 -3 ------- Run | Yrd Mat Mat Mat Fac Fac Fac DSF Fac Res Arm Active Infowar (turns) 139 | . . . . . 16 3 50 70 . . Optics 139 | . . . . . 16 3 50 70 . . Robot Analysis Total . | . . . . . . . . . . . Derelict Logs Recovered . | . . . . . . . . . . . Drone Launches . | . . . . . . . . . . . Drone Recoveries . | . . . . . . . . . . . Exploration | -11 -10 -9 -8 -7 -6 -5 -5 -4 -3 -3 ------------- Run | Yrd Mat Mat Mat Fac Fac Fac DSF Fac Res Arm Turns Passed 1078 | 9 35 59 92 229 175 3 50 199 79 148 Spaces Moved 1959 | 18 68 117 163 367 310 6 77 383 157 293 Core 1959 | 18 68 117 163 367 310 6 77 383 157 293 Treads . | . . . . . . . . . . . Legs . | . . . . . . . . . . . Wheels . | . . . . . . . . . . . Hover . | . . . . . . . . . . . Flight . | . . . . . . . . . . . Fastest Speed 50 | 50 50 50 50 50 50 50 50 50 50 50 Average Speed 50 | 50 50 50 50 50 50 50 50 50 50 50 Slowest Speed 50 | 50 50 50 50 50 50 50 50 50 50 50 Overloaded Moves . | . . . . . . . . . . . Propulsion Burnouts . | . . . . . . . . . . . Robots Hopped . | . . . . . . . . . . . Potential Cave-ins . | . . . . . . . . . . . Cave-ins Triggered . | . . . . . . . . . . . Exploration Rate (%) 20 | 3 17 15 19 12 11 . 79 14 6 30 Regions Visited 10 Branch Regions 1 Pre-discovered Areas . | . . . . . . . . . . . Known Exits Taken 6 | . 1 1 . . 1 1 . 1 1 . Unknown Exits Taken 3 | 1 . . 1 1 . . . . . . Scrap Searched . | . . . . . . . . . . . Spaces Dug 1 | . . . . 1 . . . . . . Terrain Destroyed 21 | . . . . 21 . . . . . . Melee 1 | . . . . 1 . . . . . . Projectile . | . . . . . . . . . . . AOE 20 | . . . . 20 . . . . . . Terrain Rammed . | . . . . . . . . . . . Walls Destroyed . | . . . . . . . . . . . Machines Disabled . | . . . . . . . . . . . Actions | -11 -10 -9 -8 -7 -6 -5 -5 -4 -3 -3 --------- Run | Yrd Mat Mat Mat Fac Fac Fac DSF Fac Res Arm Total 2023 | 17 68 116 170 395 328 5 87 387 156 294 Wait 2 | . . . 2 . . . . . . . Move 1950 | 17 67 116 162 366 310 5 76 382 156 293 Hop . | . . . . . . . . . . . Pick Up 5 | . 1 . 1 1 . . . 1 . 1 Fast Attach 12 | . . . 5 1 3 . 1 2 . . Attach . | . . . . . . . . . . . Detach . | . . . . . . . . . . . Swap 2 | . . . . 2 . . . . . . Drop . | . . . . . . . . . . . Fire 3 | . . . . 3 . . . . . . Melee 8 | . . . . 7 . . . 1 . . Ram 1 | . . . . . . . . 1 . . Kick . | . . . . . . . . . . . Crush . | . . . . . . . . . . . Escape Stasis 40 | . . . . 15 15 . 10 . . . Rewire . | . . . . . . . . . . . Trap . | . . . . . . . . . . . Miscellaneous . | . . . . . . . . . . . Route ------- -11/Scrapyard -10/Materials (discovered 5 exits: *Mat x3 / Min x2) -9/Materials (discovered 4 exits: *Mat x3 / [*Sto]) -8/Materials -7/Factory -6/Factory (discovered 3 exits: *Fac / *Low x2) -5/Factory -5/DSF -4/Factory (discovered 4 exits: *Res x4) -3/Research -3/Armory History --------- Turn | Location | Event 3 | -11/Scrapyard | Discovered new exit (range 15) 10 | -11/Scrapyard | Entered Materials 35 | -10/Materials | Identified exit to Mines 35 | -10/Materials | Identified exit to Materials 45 | -10/Materials | Entered another Materials area 45 | -9/Materials | Evolved 2 slots: Utility x2 53 | -9/Materials | Identified exit to Materials 98 | -9/Materials | Discovered new exit (range 8) 104 | -9/Materials | Entered another Materials area 104 | -8/Materials | Evolved 2 slots: Utility x2 180 | -8/Materials | Discovered new exit (range 16) 196 | -8/Materials | Entered Factory 196 | -7/Factory | Evolved 2 slots: Utility x2 301 | -7/Factory | Build established: Mutant 423 | -7/Factory | Discovered new exit (range 8) 425 | -7/Factory | Entered another Factory area 425 | -6/Factory | Evolved 2 slots: Utility x2 480 | -6/Factory | Identified exit to Lower Caves 591 | -6/Factory | Discovered new exit (range 17) 600 | -6/Factory | Identified exit to Factory 600 | -6/Factory | Entered another Factory area 600 | -5/Factory | Evolved 2 slots: Utility x2 603 | -5/Factory | Identified exit to DSF 603 | -5/Factory | Entered DSF 641 | -5/DSF | Discovered new exit (range 21) 644 | -5/DSF | Additional patrols routed to DSF 653 | -5/DSF | Identified exit to Factory 653 | -5/DSF | Entered Factory 653 | -4/Factory | Evolved 2 slots: Utility x2 704 | -4/Factory | Lost 4 parts (3u1w) 704 | -4/Factory | Spotted B-86 Titan 768 | -4/Factory | Identified exit to Research 771 | -4/Factory | Found Prototype Processor 771 | -4/Factory | Identified Exp. Melee Analysis Suite 797 | -4/Factory | Core integrity fell below 50% 824 | -4/Factory | Core integrity fell below 20% 852 | -4/Factory | Entered Research 852 | -3/Research | Evolved 2 slots: Utility x2 925 | -3/Research | Discovered new exit (range 5) 927 | -3/Research | Identified exit to Armory 931 | -3/Research | Entered Armory 1070 | -3/Armory | Core integrity fell below 50% 1076 | -3/Armory | Core integrity fell below 20% 1079 | -3/Armory | Destroyed by G-67 Veteran with Field Laser Last Messages --------------- 01017_ Penetrated by Slug. 01017_ Slug penetrates Wall. 01020_ Slug penetrates Door. 01020_ Penetrated by Slug. 01020_ Component Storage disabled. 01020_ Armor Integrity Analyzer destroyed. 01030_ O-32 Director: "IFF HANDSHAKE FAILED. SECURING TERMINAL." 01035_ ALERT: Hostiles spotted, dispatching reinforcements to Terminal A007. 01052_ Connecting with Terminal... >>Trojan(Track) Trojan loaded successfully. Testing... Tracking enabled and active. 01071_ Adv. Signal Interpreter destroyed. 01076_ G-67 Veteran suffers critical hit (Burn). 01078_ Fabricator disabled. 01078_ Broken Armor Integrity Analyzer destroyed. Map ----- +----------------------------------------------------+ | ?????????????????????????????????# #??????????? | | ?????????????????????????????????# #??????????? | | ?????????????????????????????????# #??????????? | | ?????????????????????????????????# #??????????? | | ?????????????????????????????????# #??????????? | | ?????????????????????????????????# #??????????? | | ?????????????????????????????????# #??????????? | | ?????????????????????????????????# #??????????? | | ?????????????????????????????????# #??????????? | | ?????????????????????????????????# #??????????? | | ?????????????????????????????????# #??????????? | | ???????????????????????????? ???# #??????????? | | ???????????????????????????# ???# #??????????? | | ???????????????????????????# #??# #??????????? | | ???????????????????????????+ #??# #??????????? | | ???????????????????????????# #??# #??????????? | | ?????????????????????????### #### #??????????? | | ?????????????????????????# ## #??????????? | | ?????????????????????????# ] ## #??????????? | | ?????????????????????????# ## #??????????? | | ?????????????????????????# ## #??????????? | | ??????????????????????#??# ## #??????????? | | ??????????????????????# ?# ## #??????????? | | ????????????????#######;### #?# #??????????? | | ???????????H????# g # #?# #??????????? | | ????????????????# @# ### #??????????? | | ????????????????# g s + #??????????? | | ????????????????# s g " # #??????????? | | ????????????????# ss sF"# #??????????? | | ??????????????g g d "# #??????????? | | ?????????????#### ! ""######## #??????????? | | ????????????????# #??????# #??????????? | | ????????????????###########??????# #??????????? | | ?????????????????????????????????# +??????????? | | ?????????????????????????????????# #??????????? | | ?????????????????????????????????# #??????????? | | ?????????????????????????????????# +??????????? | | ?????????????????????????????????##/###??????????? | | ??????????????????????????????????? ????????????? | | ??????????????????????????????????? ????????????? | | ??????????????????????????????????? ????????????? | | ??????????????????????????????????? ????????????? | | ??????????????????????????????????? ???????????? | | ?????????????????????????????????????????????????? | | ?????????????????????????????????????????????????? | | ?????????????????????????????????????????????????? | | ?????????????????????????????????????????????????? | | ?????????????????????????????????????????????????? | | ?????????????????????????????????????????????????? | | ?????????????????????????????????????????????????? | +----------------------------------------------------+ Best States ------------- Heat Dissipation 46 Energy Generation 5 Energy Capacity 100 Matter Stores 279 Matter Capacity 300 Sight Range 22 Terrain Scan Density 10 Evasion (%) 50 Core Analysis 6 Armor Integrity Analysis 30 Defensive Hacking 10 Item Schematics ----------------- None Robot Schematics ------------------ None Fabricated ------------ Nothing Repaired ---------- Nothing Studied --------- None Alien Tech Used ----------------- None Achievements -------------- None Challenges ------------ None Game ------ Seed HeatRemotePrototype Manual? 0 Play Time 00:15:43 Cumulative 521.1 hours Start 2025.11.06 @ 07:29:02 End 2025.11.06 @ 07:55:29 Sessions 1 Manual Loads 0 Difficulty Rogue Special Mode None Game No. 287 Rogue 287 Adventurer 0 Explorer 0 Win Type - Total 22 Types 13/1/5/1/0/0/0/1/1/0 Lore% 94 Gallery% 88 Achievement% 79 Wizard Run 0 Options --------- Layout 2 ASCII 0 Keyboard 1 Movement Vi Keybinds 0 Fullscreen 1 Font 28/Terminus Map View 50x52 Zoom Use 0% Tactical HUD 1 Map Filters NONE Filters NONE Steam 1 RUN: f0eb986b-24f2-4a39-841c-c047beab6e3d